[Event "*** Titled Tuesday Blitz"]
[Site "Chess.com"]
[Date "2018.12.04"]
[Round "3"]
[White "Koksik_13"]
[Black "KenanGarayev"]
[Result "0-1"]
[WhiteElo "2737"]
[BlackElo "2757"]
[TimeControl "180+2"]
[EndTime "13:39:31 PST"]
[Termination "KenanGarayev won by resignation"]

1. e4 {[%clk 0:03:01.9]} 1... e6 {[%clk 0:03:00.9]} 2. d4 {[%clk 0:03:02.5]}
2... d5 {[%clk 0:03:01.5]} 3. Nc3 {[%clk 0:02:59.8]} 3... Nf6 {[%clk 0:03:02.1]}
4. e5 {[%clk 0:03:01.1]} 4... Nfd7 {[%clk 0:03:02.3]} 5. f4 {[%clk 0:03:02.1]}
5... c5 {[%clk 0:03:03]} 6. Nf3 {[%clk 0:03:03.2]} 6... Nc6 {[%clk 0:03:03.4]}
7. Be3 {[%clk 0:03:03.9]} 7... a6 {[%clk 0:03:02.5]} 8. Qd2 {[%clk 0:03:02.6]}
8... cxd4 {[%clk 0:02:58.5]} 9. Nxd4 {[%clk 0:03:03.4]} 9... Nxd4 {[%clk
0:03:00.4]} 10. Bxd4 {[%clk 0:03:04.5]} 10... Bc5 {[%clk 0:03:02.3]} 11. Nd1
{[%clk 0:03:01.5]} 11... O-O {[%clk 0:02:58.5]} 12. Be2 {[%clk 0:02:59.2]} 12...
b5 {[%clk 0:02:55.8]} 13. O-O {[%clk 0:02:52.7]} 13... Qb6 {[%clk 0:02:56.5]}
14. c3 {[%clk 0:02:52.7]} 14... a5 {[%clk 0:02:53.6]} 15. Ne3 {[%clk 0:02:52.2]}
15... Ba6 {[%clk 0:02:51.5]} 16. Kh1 {[%clk 0:02:52.1]} 16... f6 {[%clk
0:02:50.4]} 17. exf6 {[%clk 0:02:49.2]} 17... Nxf6 {[%clk 0:02:52.3]} 18. Bf3
{[%clk 0:02:47.7]} 18... b4 {[%clk 0:02:48.7]} 19. Rfe1 {[%clk 0:02:46]} 19...
Ne4 {[%clk 0:02:43.7]} 20. Bxe4 {[%clk 0:02:43.9]} 20... dxe4 {[%clk 0:02:45.6]}
21. Bxc5 {[%clk 0:02:33.8]} 21... Qxc5 {[%clk 0:02:47.5]} 22. cxb4 {[%clk
0:02:33.9]} 22... Qxb4 {[%clk 0:02:47.2]} 23. Qf2 {[%clk 0:02:29.6]} 23... Rab8
{[%clk 0:02:44]} 24. b3 {[%clk 0:02:26.7]} 24... a4 {[%clk 0:02:45.4]} 25. bxa4
{[%clk 0:02:25.9]} 25... Qxa4 {[%clk 0:02:47.3]} 26. Qg3 {[%clk 0:02:19.6]}
26... Bd3 {[%clk 0:02:43.4]} 27. Rac1 {[%clk 0:02:15.7]} 27... Rb7 {[%clk
0:02:36.8]} 28. h3 {[%clk 0:01:29.8]} 28... Qxa2 {[%clk 0:02:29.2]} 29. Rc5
{[%clk 0:01:26.9]} 29... Rbf7 {[%clk 0:02:22.8]} 30. Ng4 {[%clk 0:01:20.9]}
30... Rb7 {[%clk 0:02:12.1]} 31. Rec1 {[%clk 0:01:12.8]} 31... Kh8 {[%clk
0:02:05.1]} 32. Ne5 {[%clk 0:01:07.1]} 32... Rb1 {[%clk 0:02:04.6]} 33. Kh2
{[%clk 0:00:53.8]} 33... Rxc1 {[%clk 0:02:03.3]} 34. Rxc1 {[%clk 0:00:51.9]}
34... Qa7 {[%clk 0:02:02.3]} 35. f5 {[%clk 0:00:44.6]} 35... exf5 {[%clk
0:01:59.6]} 36. Rc7 {[%clk 0:00:43.4]} 36... Qxc7 {[%clk 0:01:44.3]} 37. Ng6+
{[%clk 0:00:44.3]} 37... hxg6 {[%clk 0:01:46.2]} 38. Qxc7 {[%clk 0:00:45.6]}
38... Kh7 {[%clk 0:01:48.1]} 39. Qe7 {[%clk 0:00:44]} 39... Rf6 {[%clk
0:01:49.1]} 40. g3 {[%clk 0:00:38.8]} 40... Be2 {[%clk 0:01:44.1]} 41. Kg2
{[%clk 0:00:37.5]} 41... Bf3+ {[%clk 0:01:44.2]} 42. Kf2 {[%clk 0:00:38.7]}
42... Bd1 {[%clk 0:01:39.8]} 43. Ke3 {[%clk 0:00:38.2]} 43... Bb3 {[%clk
0:01:38.6]} 44. Qb4 {[%clk 0:00:31.1]} 44... Bf7 {[%clk 0:01:34.9]} 45. Kf4
{[%clk 0:00:20.6]} 45... Re6 {[%clk 0:01:33.9]} 46. Ke3 {[%clk 0:00:20.8]} 46...
g5 {[%clk 0:01:33.6]} 47. Qb8 {[%clk 0:00:19.2]} 47... Bg6 {[%clk 0:01:26.9]}
48. Qc7 {[%clk 0:00:18.9]} 48... Rf6 {[%clk 0:01:24.2]} 49. Qe7 {[%clk
0:00:04.9]} 49... f4+ {[%clk 0:01:22.2]} 50. gxf4 {[%clk 0:00:06]} 50... gxf4+
{[%clk 0:01:24.1]} 51. Ke2 {[%clk 0:00:06.8]} 51... e3 {[%clk 0:01:18.6]} 52.
Qe5 {[%clk 0:00:07.5]} 52... Kh6 {[%clk 0:01:17]} 53. Qb8 {[%clk 0:00:07.2]}
53... Kg5 {[%clk 0:01:12.7]} 54. Qh8 {[%clk 0:00:04.7]} 54... Bh5+ {[%clk
0:01:08.3]} 55. Kf1 {[%clk 0:00:05.1]} 55... Rf7 {[%clk 0:01:02.4]} 56. Qd8+
{[%clk 0:00:05.2]} 56... Kg6 {[%clk 0:01:01.3]} 57. Qd3+ {[%clk 0:00:04.8]}
57... Rf5 {[%clk 0:00:59.8]} 58. Qe4 {[%clk 0:00:04.4]} 58... Kg5 {[%clk
0:00:58.4]} 59. h4+ {[%clk 0:00:04.1]} 59... Kg4 {[%clk 0:00:56.9]} 60. Kg2
{[%clk 0:00:04.2]} 60... Bf7 {[%clk 0:00:54.8]} 61. Kh2 {[%clk 0:00:03.5]} 61...
Bd5 {[%clk 0:00:53.5]} 62. Qe7 {[%clk 0:00:03.9]} 62... g6 {[%clk 0:00:49.8]}
63. Kg1 {[%clk 0:00:03.6]} 63... Kf3 {[%clk 0:00:45.1]} 64. Kf1 {[%clk
0:00:03.5]} 64... Bc4+ {[%clk 0:00:43.4]} 65. Ke1 {[%clk 0:00:04.6]} 65... Rb5
{[%clk 0:00:42.7]} 66. Kd1 {[%clk 0:00:03.3]} 66... Bd3 {[%clk 0:00:31.9]} 67.
Qb7+ {[%clk 0:00:02.6]} 67... Rxb7 {[%clk 0:00:32.6]} 0-1

[Event "*** Titled Tuesday Blitz"]
[Site "Chess.com"]
[Date "2018.12.04"]
[Round "3"]
[White "GadimbayliA"]
[Black "LyonBeast"]
[Result "0-1"]
[WhiteElo "2655"]
[BlackElo "2919"]
[TimeControl "180+2"]
[EndTime "13:39:32 PST"]
[Termination "LyonBeast won on time"]

1. e4 {[%clk 0:03:01.9]} 1... c5 {[%clk 0:03:00.3]} 2. Nf3 {[%clk 0:03:02.6]}
2... d6 {[%clk 0:03:00]} 3. Bb5+ {[%clk 0:02:58.8]} 3... Nd7 {[%clk 0:02:59.3]}
4. O-O {[%clk 0:02:58.6]} 4... a6 {[%clk 0:02:58]} 5. Be2 {[%clk 0:02:59.1]}
5... Ngf6 {[%clk 0:02:58]} 6. d3 {[%clk 0:03:00.2]} 6... g6 {[%clk 0:02:57.4]}
7. a4 {[%clk 0:02:59.2]} 7... Bg7 {[%clk 0:02:58.3]} 8. Nc3 {[%clk 0:03:00.4]}
8... O-O {[%clk 0:02:59.2]} 9. Re1 {[%clk 0:02:57.7]} 9... Rb8 {[%clk
0:03:00.2]} 10. a5 {[%clk 0:02:57.5]} 10... b5 {[%clk 0:03:01.3]} 11. axb6
{[%clk 0:02:58.5]} 11... Nxb6 {[%clk 0:03:01.5]} 12. Bf4 {[%clk 0:02:53.9]}
12... Bg4 {[%clk 0:02:55.5]} 13. Nd2 {[%clk 0:02:53.1]} 13... Bxe2 {[%clk
0:02:54.4]} 14. Qxe2 {[%clk 0:02:55]} 14... Qc8 {[%clk 0:02:53.5]} 15. Ra2
{[%clk 0:02:44.3]} 15... Re8 {[%clk 0:02:45.6]} 16. Nc4 {[%clk 0:02:32.6]} 16...
Nxc4 {[%clk 0:02:36.3]} 17. dxc4 {[%clk 0:02:34.5]} 17... Nd7 {[%clk 0:02:19.6]}
18. Bd2 {[%clk 0:02:33.6]} 18... Ne5 {[%clk 0:02:18.7]} 19. b3 {[%clk 0:02:32]}
19... Nc6 {[%clk 0:02:17.4]} 20. Nd5 {[%clk 0:01:57.6]} 20... e6 {[%clk
0:02:11]} 21. Nf4 {[%clk 0:01:49.4]} 21... Qb7 {[%clk 0:02:01]} 22. Nd3 {[%clk
0:01:44.9]} 22... a5 {[%clk 0:01:45.4]} 23. Bf4 {[%clk 0:01:31]} 23... Rbd8
{[%clk 0:01:46.1]} 24. Bg5 {[%clk 0:01:28.8]} 24... Ra8 {[%clk 0:01:46]} 25. Bf4
{[%clk 0:01:27.8]} 25... Qb6 {[%clk 0:01:39.6]} 26. e5 {[%clk 0:01:10.5]} 26...
dxe5 {[%clk 0:01:29.9]} 27. Nxe5 {[%clk 0:01:07.5]} 27... Nb4 {[%clk 0:01:19.2]}
28. Ra4 {[%clk 0:01:06.8]} 28... Rad8 {[%clk 0:01:13.6]} 29. Rb1 {[%clk
0:00:57.9]} 29... Rd4 {[%clk 0:01:11]} 30. g3 {[%clk 0:00:54.3]} 30... Rdd8
{[%clk 0:00:52.5]} 31. c3 {[%clk 0:00:50.3]} 31... Nc6 {[%clk 0:00:53.2]} 32.
Nxc6 {[%clk 0:00:49.9]} 32... Qxc6 {[%clk 0:00:55.1]} 33. Be5 {[%clk 0:00:47.7]}
33... f6 {[%clk 0:00:56.2]} 34. Bf4 {[%clk 0:00:47.2]} 34... e5 {[%clk
0:00:55.7]} 35. Be3 {[%clk 0:00:48]} 35... f5 {[%clk 0:00:50]} 36. Rxa5 {[%clk
0:00:47.5]} 36... f4 {[%clk 0:00:50.8]} 37. Bxc5 {[%clk 0:00:46.2]} 37... f3
{[%clk 0:00:49.9]} 38. Qf1 {[%clk 0:00:44.3]} 38... e4 {[%clk 0:00:49.8]} 39.
Bd4 {[%clk 0:00:45.4]} 39... Bxd4 {[%clk 0:00:50.5]} 40. cxd4 {[%clk 0:00:47.3]}
40... e3 {[%clk 0:00:51.2]} 41. d5 {[%clk 0:00:45.5]} 41... Qb6 {[%clk
0:00:52.3]} 42. Rb5 {[%clk 0:00:45.4]} 42... Qd4 {[%clk 0:00:53.6]} 43. h4
{[%clk 0:00:36.1]} 43... Ra8 {[%clk 0:00:49.4]} 44. d6 {[%clk 0:00:25.3]} 44...
e2 {[%clk 0:00:29.9]} 45. Qe1 {[%clk 0:00:24.4]} 45... Qxd6 {[%clk 0:00:31.4]}
46. Rd5 {[%clk 0:00:21]} 46... Qe6 {[%clk 0:00:32.5]} 47. Kh2 {[%clk 0:00:20.2]}
47... Rad8 {[%clk 0:00:33.3]} 48. Rxd8 {[%clk 0:00:15.2]} 48... Rxd8 {[%clk
0:00:35.2]} 49. c5 {[%clk 0:00:17.1]} 49... Rd4 {[%clk 0:00:29]} 50. Ra1 {[%clk
0:00:14.8]} 50... Qf6 {[%clk 0:00:24.9]} 51. Ra8+ {[%clk 0:00:10.8]} 51... Kf7
{[%clk 0:00:25.8]} 52. Ra7+ {[%clk 0:00:08.9]} 52... Ke8 {[%clk 0:00:27.2]} 53.
Ra8+ {[%clk 0:00:09.3]} 53... Kd7 {[%clk 0:00:26.8]} 54. c6+ {[%clk 0:00:06.3]}
54... Qxc6 {[%clk 0:00:16.5]} 55. Qa5 {[%clk 0:00:07.6]} 55... Qc7 {[%clk
0:00:10.4]} 56. Qb5+ {[%clk 0:00:05.6]} 56... Ke7 {[%clk 0:00:09.2]} 57. Qe8+
{[%clk 0:00:03.7]} 57... Kf6 {[%clk 0:00:10.4]} 58. Qf8+ {[%clk 0:00:04]} 58...
Ke6 {[%clk 0:00:08.7]} 59. Qe8+ {[%clk 0:00:05.3]} 59... Kf5 {[%clk 0:00:07.1]}
60. Qf8+ {[%clk 0:00:04.9]} 60... Kg4 {[%clk 0:00:08.3]} 61. Rc8 {[%clk
0:00:03.5]} 61... e1=Q {[%clk 0:00:05.9]} 0-1

[Event "*** Titled Tuesday Blitz"]
[Site "Chess.com"]
[Date "2018.12.04"]
[Round "3"]
[White "BillForster"]
[Black "Chessnut2018"]
[Result "1-0"]
[WhiteElo "1722"]
[BlackElo "1334"]
[TimeControl "180+2"]
[EndTime "13:39:35 PST"]
[Termination "BillForster won by resignation"]

1. d4 {[%clk 0:03:01.9]} 1... Nf6 {[%clk 0:02:59.8]} 2. c4 {[%clk 0:03:00.6]}
2... g6 {[%clk 0:03:01]} 3. Nc3 {[%clk 0:03:01.2]} 3... Bg7 {[%clk 0:03:02]} 4.
e4 {[%clk 0:03:01.8]} 4... d6 {[%clk 0:03:03.1]} 5. Bd3 {[%clk 0:02:59.5]} 5...
O-O {[%clk 0:02:59.7]} 6. Nge2 {[%clk 0:02:55.3]} 6... c5 {[%clk 0:03:00.8]} 7.
d5 {[%clk 0:02:54.3]} 7... e6 {[%clk 0:03:01.1]} 8. O-O {[%clk 0:02:50.2]} 8...
e5 {[%clk 0:02:57.3]} 9. f3 {[%clk 0:02:37.5]} 9... Nbd7 {[%clk 0:02:51.3]} 10.
Be3 {[%clk 0:02:37.3]} 10... a6 {[%clk 0:02:47]} 11. a3 {[%clk 0:02:32.5]} 11...
h5 {[%clk 0:02:25.8]} 12. b4 {[%clk 0:02:28.9]} 12... Nh7 {[%clk 0:02:20.6]} 13.
Qc2 {[%clk 0:02:18.1]} 13... b6 {[%clk 0:02:18.4]} 14. Rab1 {[%clk 0:02:16.7]}
14... a5 {[%clk 0:02:11.6]} 15. Rfc1 {[%clk 0:02:12.4]} 15... axb4 {[%clk
0:02:07.9]} 16. axb4 {[%clk 0:02:10.9]} 16... cxb4 {[%clk 0:01:54.3]} 17. Rxb4
{[%clk 0:02:09]} 17... Nc5 {[%clk 0:01:55.1]} 18. Rcb1 {[%clk 0:01:57.4]} 18...
Rb8 {[%clk 0:01:47.8]} 19. Na4 {[%clk 0:01:42.6]} 19... Nxa4 {[%clk 0:01:28.4]}
20. Qxa4 {[%clk 0:01:41.5]} 20... Bd7 {[%clk 0:01:26.5]} 21. Qb3 {[%clk
0:01:32.9]} 21... f5 {[%clk 0:01:15]} 22. Nc3 {[%clk 0:01:24.3]} 22... fxe4
{[%clk 0:01:10.7]} 23. Nxe4 {[%clk 0:01:22.6]} 23... Bf5 {[%clk 0:01:07.2]} 24.
Rxb6 {[%clk 0:01:15.2]} 24... Rxb6 {[%clk 0:01:05.7]} 25. Qxb6 {[%clk
0:01:15.4]} 25... Qxb6 {[%clk 0:01:06.9]} 26. Rxb6 {[%clk 0:01:15.7]} 26... Bxe4
{[%clk 0:01:08.2]} 27. Bxe4 {[%clk 0:01:11.6]} 27... Rd8 {[%clk 0:00:46.8]} 28.
Bxg6 {[%clk 0:01:08.5]} 28... h4 {[%clk 0:00:44.8]} 29. Bxh7+ {[%clk 0:01:04]}
29... Kxh7 {[%clk 0:00:45]} 30. Kf2 {[%clk 0:00:35.2]} 30... Rd7 {[%clk
0:00:44.7]} 31. Bg5 {[%clk 0:00:31.5]} 31... Kg6 {[%clk 0:00:39.1]} 32. Bxh4
{[%clk 0:00:31.1]} 32... Kf5 {[%clk 0:00:39.8]} 33. Bg3 {[%clk 0:00:28]} 33...
e4 {[%clk 0:00:30.4]} 34. Ke2 {[%clk 0:00:28]} 34... exf3+ {[%clk 0:00:26.9]}
35. Kxf3 {[%clk 0:00:23.2]} 35... Be5 {[%clk 0:00:27.4]} 36. Bxe5 {[%clk
0:00:20.8]} 36... Kxe5 {[%clk 0:00:28.4]} 37. h4 {[%clk 0:00:19.8]} 37... Kd4
{[%clk 0:00:29.4]} 38. Rc6 {[%clk 0:00:18.9]} 38... Ke5 {[%clk 0:00:22.9]} 39.
g4 {[%clk 0:00:18.6]} 39... Rf7+ {[%clk 0:00:21.2]} 40. Kg3 {[%clk 0:00:18.1]}
40... Rh7 {[%clk 0:00:20.5]} 41. h5 {[%clk 0:00:18.1]} 41... Rh6 {[%clk
0:00:19.9]} 42. Kh4 {[%clk 0:00:18.5]} 42... Rf6 {[%clk 0:00:20.2]} 43. g5
{[%clk 0:00:16.7]} 43... Rf4+ {[%clk 0:00:21.1]} 44. Kg3 {[%clk 0:00:17.5]}
44... Rf1 {[%clk 0:00:20.5]} 45. g6 {[%clk 0:00:16.2]} 45... Rg1+ {[%clk
0:00:21.5]} 46. Kh2 {[%clk 0:00:14.9]} 46... Rf1 {[%clk 0:00:21.1]} 47. h6
{[%clk 0:00:15.2]} 47... Rf8 {[%clk 0:00:18.4]} 48. g7 {[%clk 0:00:15.3]} 48...
Rg8 {[%clk 0:00:17.2]} 49. Kh3 {[%clk 0:00:16.1]} 49... Kf6 {[%clk 0:00:17.8]}
50. Rxd6+ {[%clk 0:00:16.2]} 50... Kf7 {[%clk 0:00:17.4]} 51. Rc6 {[%clk
0:00:16.5]} 51... Rd8 {[%clk 0:00:11.7]} 52. Kg4 {[%clk 0:00:17.1]} 52... Kg8
{[%clk 0:00:11.3]} 53. Kf5 {[%clk 0:00:16.8]} 53... Rd7 {[%clk 0:00:10.8]} 54.
d6 {[%clk 0:00:15.5]} 54... Rf7+ {[%clk 0:00:11.3]} 55. Ke6 {[%clk 0:00:14.6]}
55... Rf1 {[%clk 0:00:11.2]} 56. Rc8+ {[%clk 0:00:14.9]} 56... Kh7 {[%clk
0:00:10]} 57. g8=Q+ {[%clk 0:00:15.9]} 57... Kxh6 {[%clk 0:00:09.7]} 58. Qh8+
{[%clk 0:00:16.2]} 58... Kg5 {[%clk 0:00:10]} 59. Rg8+ {[%clk 0:00:16.7]} 1-0

[Event "*** Titled Tuesday Blitz"]
[Site "Chess.com"]
[Date "2018.12.04"]
[Round "3"]
[White "DSCC1"]
[Black "WorldChampionBulletChess"]
[Result "1-0"]
[WhiteElo "2186"]
[BlackElo "2086"]
[TimeControl "180+2"]
[EndTime "13:39:40 PST"]
[Termination "DSCC1 won by checkmate"]

1. Nf3 {[%clk 0:03:01.9]} 1... d5 {[%clk 0:03:00.8]} 2. c4 {[%clk 0:03:02.5]}
2... e6 {[%clk 0:03:00.7]} 3. g3 {[%clk 0:03:02.4]} 3... Nf6 {[%clk 0:03:01.4]}
4. Bg2 {[%clk 0:03:03.7]} 4... c5 {[%clk 0:03:00.8]} 5. O-O {[%clk 0:03:02]}
5... Be7 {[%clk 0:02:58.7]} 6. b3 {[%clk 0:03:02.1]} 6... O-O {[%clk 0:02:59.1]}
7. e3 {[%clk 0:03:03.2]} 7... Nc6 {[%clk 0:02:57.7]} 8. Bb2 {[%clk 0:03:04.7]}
8... d4 {[%clk 0:02:49.4]} 9. exd4 {[%clk 0:03:05.4]} 9... cxd4 {[%clk
0:02:51.3]} 10. Re1 {[%clk 0:03:06.3]} 10... d3 {[%clk 0:02:39]} 11. Ne5 {[%clk
0:02:49.6]} 11... Nb4 {[%clk 0:02:35]} 12. Na3 {[%clk 0:02:47.8]} 12... Bc5
{[%clk 0:02:13.7]} 13. Qf3 {[%clk 0:02:09.5]} 13... Qb6 {[%clk 0:02:07]} 14. Rf1
{[%clk 0:00:59.5]} 14... a6 {[%clk 0:01:33.4]} 15. Nxd3 {[%clk 0:00:54.1]} 15...
Nxd3 {[%clk 0:01:32.9]} 16. Qxd3 {[%clk 0:00:55.4]} 16... Rd8 {[%clk 0:01:30.7]}
17. Qe2 {[%clk 0:00:47.4]} 17... Bd4 {[%clk 0:01:16.1]} 18. Bc3 {[%clk
0:00:16.5]} 18... Qc5 {[%clk 0:01:08.3]} 19. Nc2 {[%clk 0:00:14.1]} 19... Bxc3
{[%clk 0:01:05.8]} 20. dxc3 {[%clk 0:00:16]} 20... Rb8 {[%clk 0:00:59.1]} 21.
Rad1 {[%clk 0:00:10.8]} 21... Bd7 {[%clk 0:00:58.4]} 22. Qe3 {[%clk 0:00:11.2]}
22... Qe7 {[%clk 0:00:58.5]} 23. Rd2 {[%clk 0:00:10.5]} 23... Bc6 {[%clk
0:00:59.9]} 24. Bxc6 {[%clk 0:00:11]} 24... bxc6 {[%clk 0:01:00.8]} 25. Rfd1
{[%clk 0:00:12.8]} 25... Rdc8 {[%clk 0:00:59.5]} 26. Kg2 {[%clk 0:00:12.4]}
26... h6 {[%clk 0:01:00.5]} 27. Nb4 {[%clk 0:00:12.9]} 27... Qb7 {[%clk
0:00:59.1]} 28. Nd3 {[%clk 0:00:12.6]} 28... c5+ {[%clk 0:00:59.2]} 29. Qf3
{[%clk 0:00:13.8]} 29... Qc7 {[%clk 0:00:58.8]} 30. Nb2 {[%clk 0:00:14]} 30...
Qe5 {[%clk 0:00:48.8]} 31. Na4 {[%clk 0:00:13.6]} 31... Ne4 {[%clk 0:00:44.2]}
32. Re2 {[%clk 0:00:13.2]} 32... f5 {[%clk 0:00:39.3]} 33. Rd3 {[%clk
0:00:14.2]} 33... Qf6 {[%clk 0:00:33.5]} 34. Qe3 {[%clk 0:00:14.2]} 34... Qe7
{[%clk 0:00:12.2]} 35. f3 {[%clk 0:00:14.8]} 35... Ng5 {[%clk 0:00:13.1]} 36. h4
{[%clk 0:00:14.4]} 36... Nf7 {[%clk 0:00:11.8]} 37. Qxe6 {[%clk 0:00:15.5]}
37... Qc7 {[%clk 0:00:12.5]} 38. Qe7 {[%clk 0:00:15.1]} 38... Qxe7 {[%clk
0:00:13.1]} 39. Rxe7 {[%clk 0:00:15.5]} 39... Re8 {[%clk 0:00:13.8]} 40. Rxe8+
{[%clk 0:00:16]} 40... Rxe8 {[%clk 0:00:15.7]} 41. Kf2 {[%clk 0:00:17.3]} 41...
Ne5 {[%clk 0:00:16.7]} 42. Re3 {[%clk 0:00:17.2]} 42... Kf7 {[%clk 0:00:09.4]}
43. Nxc5 {[%clk 0:00:18.2]} 43... Nc6 {[%clk 0:00:03.9]} 44. Rxe8 {[%clk
0:00:18]} 44... Kxe8 {[%clk 0:00:05.8]} 45. Nxa6 {[%clk 0:00:19.1]} 45... Kd7
{[%clk 0:00:07.3]} 46. Nb4 {[%clk 0:00:19.2]} 46... Ne5 {[%clk 0:00:08.7]} 47.
Ke3 {[%clk 0:00:18.9]} 47... g5 {[%clk 0:00:08.8]} 48. hxg5 {[%clk 0:00:19.7]}
48... hxg5 {[%clk 0:00:10.7]} 49. Nd3 {[%clk 0:00:20.8]} 49... Nc6 {[%clk
0:00:06.1]} 50. g4 {[%clk 0:00:19.8]} 50... fxg4 {[%clk 0:00:05.7]} 51. fxg4
{[%clk 0:00:21.7]} 51... Ke6 {[%clk 0:00:05.7]} 52. Ke4 {[%clk 0:00:22.3]} 52...
Ne7 {[%clk 0:00:06.4]} 53. b4 {[%clk 0:00:21.8]} 53... Nc8 {[%clk 0:00:07.5]}
54. c5 {[%clk 0:00:22.5]} 54... Ne7 {[%clk 0:00:09.1]} 55. c4 {[%clk 0:00:21.7]}
55... Nc6 {[%clk 0:00:10.6]} 56. b5 {[%clk 0:00:22.4]} 56... Na5 {[%clk
0:00:12.3]} 57. Nb2 {[%clk 0:00:22.3]} 57... Nb7 {[%clk 0:00:12.8]} 58. c6
{[%clk 0:00:22.6]} 58... Nc5+ {[%clk 0:00:13.9]} 59. Kd4 {[%clk 0:00:23.5]}
59... Kd6 {[%clk 0:00:13.6]} 60. Nd3 {[%clk 0:00:23.9]} 60... Ne6+ {[%clk
0:00:14.8]} 61. Ke4 {[%clk 0:00:24.4]} 61... Nc7 {[%clk 0:00:15.1]} 62. a4
{[%clk 0:00:24.6]} 62... Ne6 {[%clk 0:00:15.3]} 63. a5 {[%clk 0:00:26]} 63...
Nd8 {[%clk 0:00:16.2]} 64. a6 {[%clk 0:00:26.5]} 64... Ne6 {[%clk 0:00:17]} 65.
c5+ {[%clk 0:00:26.2]} 65... Kc7 {[%clk 0:00:16.9]} 66. Kd5 {[%clk 0:00:27.1]}
66... Nd8 {[%clk 0:00:16.5]} 67. b6+ {[%clk 0:00:27.2]} 67... Kc8 {[%clk
0:00:16.9]} 68. c7 {[%clk 0:00:27.9]} 68... Nc6 {[%clk 0:00:17.7]} 69. Ne5
{[%clk 0:00:26.4]} 69... Ne7+ {[%clk 0:00:15.7]} 70. Ke6 {[%clk 0:00:26.6]}
70... Nc6 {[%clk 0:00:15.6]} 71. Kf5 {[%clk 0:00:26.3]} 71... Ne7+ {[%clk
0:00:16.6]} 72. Kxg5 {[%clk 0:00:25.2]} 72... Nf5 {[%clk 0:00:17.3]} 73. a7
{[%clk 0:00:25.6]} 73... Kb7 {[%clk 0:00:18.1]} 74. gxf5 {[%clk 0:00:26.1]}
74... Ka6 {[%clk 0:00:18.8]} 75. a8=Q+ {[%clk 0:00:26.9]} 75... Kb5 {[%clk
0:00:20.7]} 76. Qc6+ {[%clk 0:00:27.9]} 76... Kb4 {[%clk 0:00:21.9]} 77. b7
{[%clk 0:00:29.5]} 77... Kb3 {[%clk 0:00:23.7]} 78. b8=Q+ {[%clk 0:00:29.2]}
78... Kc3 {[%clk 0:00:25.6]} 79. Qf3+ {[%clk 0:00:29.3]} 79... Kd2 {[%clk
0:00:27.5]} 80. Qd3+ {[%clk 0:00:29.9]} 80... Kc1 {[%clk 0:00:28.6]} 81. Qbb1#
{[%clk 0:00:30.3]} 1-0